fUST/lending_fUST_20250701
["ID","MTS","AMOUNT","RATE_DAILY","PERIOD"]
[368734529,1751335841182,-467.74193312,0.00018453,2]
[368734531,1751335841192,-460.0,0.00018453,2]
[368734533,1751335841201,-460.0,0.00018453,2]
[368734535,1751335841211,-1650.13,0.00018453,2]
[368734537,1751335841221,-1435.85,0.00018453,2]
[368734539,1751335841231,-1943.98,0.00018453,2]
[368734541,1751335841241,-236.37,0.00018453,2]
[368734543,1751335841251,-335.07841696,0.00018453,2]
[368734545,1751335841260,-460.0,0.00018453,2]
[368734547,1751335841270,-460.0,0.00018453,2]
[368734549,1751335841280,-717.33,0.00018453,2]
[368734551,1751335841290,-460.0,0.00018453,2]
[368734553,1751335841299,-475.69676906,0.00018453,2]
[368734724,1751335843028,-460.0,0.0001828,2]
[368734727,1751335843039,-97.22323094,0.00018453,2]
[368734729,1751335843050,-1079.47,0.00018453,2]
[368734731,1751335843060,-310.99,0.00018453,2]
[368734733,1751335843071,-460.0,0.00018453,2]
[368734735,1751335843081,-432.04263251,0.00018453,2]
[368734737,1751335843091,-436.35685778,0.00018453,2]
[368734739,1751335843101,-721.37,0.00018453,2]
[368734741,1751335843111,-460.0,0.00018453,2]
[368734743,1751335843120,-460.0,0.00018453,2]
[368734745,1751335843130,-1346.39,0.00018453,2]
[368734747,1751335843139,-553.15,0.00018453,2]
[368734748,1751335843148,-460.0,0.00018454,2]
[368734750,1751335843158,-460.0,0.00018454,2]
[368734752,1751335843167,-460.0,0.00018454,2]
[368734754,1751335843176,-460.0,0.00018454,2]
[368734756,1751335843187,-183.17,0.00018454,2]
[368734758,1751335843198,-460.0,0.00018454,2]
[368734760,1751335843207,-460.0,0.00018454,2]
[368734762,1751335843217,-460.0,0.00018454,2]
[368734764,1751335843227,-460.0,0.00018454,2]
[368734766,1751335843236,-42.83727877,0.00018454,2]
[368735285,1751335909604,1400.0,0.00024948,60]
[368735307,1751336027974,375.0,0.00024,120]
[368735308,1751336067406,-385.25249538,0.00018081,2]
[368735309,1751336069541,-479.93251765,0.00018081,2]
[368735310,1751336073681,-178.53683612,0.00018081,2]
[368735311,1751336075294,-223.34439617,0.00018081,2]
[368735312,1751336079458,-156.16817681,0.00018081,2]
[368735313,1751336082265,-416.82609644,0.00018081,2]
[368735314,1751336085637,-123.78381823,0.00018081,2]
[368735315,1751336140042,-216.62346755,0.00018079,2]
[368735316,1751336142518,-291.86805727,0.00018079,2]
[368735317,1751336144700,-158.86805727,0.00018079,2]
[368735318,1751336149434,-192.86805727,0.00018079,2]
[368735319,1751336151555,-342.81067904,0.00018079,2]
[368735320,1751336154548,-26.45567245,0.00018079,2]
[368735328,1751336351742,-300.0,0.00018176,2]
[368735329,1751336351765,-300.0,0.00018177,2]
[368735330,1751336351789,-460.0,0.00018177,2]
[368735331,1751336351811,-460.0,0.00018177,2]
[368735332,1751336351832,-460.0,0.00018177,2]
[368735333,1751336351856,-460.0,0.00018177,2]
[368735334,1751336351877,-460.0,0.00018177,2]
[368735335,1751336351898,-460.0,0.00018177,2]
[368735336,1751336351919,-460.0,0.00018177,2]
[368735337,1751336351941,-460.0,0.00018177,2]
[368735338,1751336351965,-1264.23,0.00018177,2]
[368735339,1751336351985,-460.0,0.00018177,2]
[368735340,1751336352007,-460.0,0.00018177,2]
[368735341,1751336352028,-460.0,0.00018177,2]
[368735342,1751336352049,-460.0,0.00018177,2]
[368735343,1751336352071,-460.0,0.00018177,2]
[368735344,1751336352093,-460.0,0.00018177,2]
[368735345,1751336352113,-460.0,0.00018177,2]
[368735346,1751336352134,-460.0,0.00018177,2]
[368735347,1751336352155,-460.0,0.00018177,2]
[368735348,1751336352175,-190.24028093,0.00018177,2]
[368735349,1751336352196,-392.21343483,0.00018178,2]
[368735350,1751336352218,-460.0,0.00018178,2]
[368735351,1751336352240,-460.0,0.00018178,2]
[368735352,1751336352263,-460.0,0.00018178,2]
[368735353,1751336352285,-590.45,0.00018178,2]
[368735354,1751336352307,-460.0,0.00018178,2]
[368735355,1751336352328,-460.0,0.00018178,2]
[368735356,1751336352349,-460.0,0.00018178,2]
[368735357,1751336352371,-649.75,0.00018178,2]
[368735358,1751336352393,-460.0,0.00018178,2]
[368735359,1751336352414,-460.0,0.00018178,2]
[368735360,1751336352436,-465.0,0.00018178,2]
[368735361,1751336352457,-460.0,0.00018178,2]
[368735362,1751336352478,-354.11628424,0.00018178,2]
[368735365,1751336420600,-192.36429118,0.00018078,2]
[368735366,1751336424709,-218.86526479,0.00018078,2]
[368735367,1751336426396,-280.65971428,0.00018078,2]
[368735368,1751336430216,-363.98273888,0.00018078,2]
[368735369,1751336435546,-19.93523289,0.00018078,2]
[368735373,1751336663788,338.281818,0.00013699,2]
[368735375,1751336708126,-164.40000749,0.00018077,2]
[368735376,1751336710888,-152.70048686,0.00018077,2]
[368735377,1751336713614,-391.46128161,0.00018077,2]
[368735378,1751336716315,-327.93188565,0.00018077,2]
[368735390,1751336820003,-321.22198446,0.00018156,2]
[368735391,1751336841083,-2290.15787876,0.00018156,2]
[368735392,1751336841109,-151.35368371,0.00018167,2]
[368735393,1751336841131,-612.36,0.0001817,3]
[368735394,1751336841154,-300.0,0.00018175,2]
[368735395,1751336841177,-33.90709555,0.00018175,2]
[368735396,1751336904677,151.0,0.000179,2]
[368735397,1751336920547,863.32997099,0.00024967,120]
[368735398,1751336926186,250.49729343,0.00024967,120]
[368735399,1751336926337,1116.29504089,0.00024967,120]
[368735400,1751336927731,1136.649054,0.00024967,120]
[368735401,1751336927761,208.27370553,0.00024967,120]
[368735402,1751336930556,534.88016849,0.00024967,120]
[368735406,1751336945863,161.0,0.00018,2]
[368735407,1751336947402,161.0,0.00018,2]
[368735408,1751336959123,163.97481368,0.00018,3]
[368735409,1751336992794,-152.09943122,0.00018076,2]
[368735410,1751336994624,-199.46270862,0.00018076,2]
[368735411,1751336996864,-308.55498021,0.00018076,2]
[368735412,1751337001447,-151.95642009,0.00018076,2]
[368735413,1751337005053,-135.01116187,0.00018076,2]
[368735440,1751337032195,-300.0,0.00018174,2]
[368735442,1751337032206,-460.0,0.00018175,2]
[368735443,1751337032216,-460.0,0.00018175,2]
[368735444,1751337032226,-460.0,0.00018175,2]
[368735445,1751337032238,-460.0,0.00018175,2]
[368735446,1751337032248,-1297.73,0.00018175,2]
[368735447,1751337032259,-460.0,0.00018175,2]
[368735448,1751337032268,-460.0,0.00018175,2]
[368735449,1751337032278,-460.0,0.00018175,2]
[368735450,1751337032289,-460.0,0.00018175,2]
[368735451,1751337032300,-460.0,0.00018175,2]
[368735453,1751337032310,-460.0,0.00018175,2]
[368735455,1751337032320,-460.0,0.00018176,2]
[368735457,1751337032330,-460.0,0.00018176,2]
[368735458,1751337032340,-460.0,0.00018176,2]
[368735459,1751337032349,-460.0,0.00018176,2]
[368735460,1751337032360,-461.66745415,0.00018176,2]
[368735461,1751337032370,-460.0,0.00018176,2]
[368735462,1751337032380,-199.84966078,0.00018176,2]
[368735463,1751337032390,-460.0,0.00018176,2]
[368735464,1751337032399,-508.65350361,0.00018176,2]
[368735465,1751337032409,-460.0,0.00018176,2]
[368735466,1751337032419,-671.74,0.00018176,2]
[368735467,1751337032429,-1712.85,0.00018176,2]
[368735468,1751337032438,-460.0,0.00018176,2]
[368735469,1751337032448,-330.42,0.00018176,2]
[368735470,1751337032457,-1642.06,0.00018176,2]
[368735471,1751337032467,-460.0,0.00018176,2]
[368735472,1751337032624,-460.0,0.00018176,2]
[368735473,1751337032636,-460.0,0.00018176,2]
[368735474,1751337032646,-460.0,0.00018176,2]
[368735475,1751337032656,-565.88371576,0.00018176,2]
[368735476,1751337032666,-463.8,0.00018176,2]
[368735477,1751337032678,-1788.74,0.00018176,2]
[368735478,1751337032688,-460.0,0.00018176,2]
[368735479,1751337032698,-467.17551966,0.00018176,2]
[368735480,1751337032707,-460.0,0.00018176,2]
[368735481,1751337032717,-2476.94,0.00018176,2]
[368735482,1751337032727,-2036.86,0.00018176,2]
[368735483,1751337032737,-460.0,0.00018176,2]
[368735484,1751337032747,-460.0,0.00018176,2]
[368735485,1751337032757,-460.0,0.00018176,2]
[368735486,1751337032766,-935.68,0.00018176,2]
[368735487,1751337032776,-460.0,0.00018176,2]
[368735488,1751337032785,-460.0,0.00018176,2]
[368735489,1751337032795,-460.0,0.00018176,2]
[368735490,1751337032805,-460.0,0.00018176,2]
[368735491,1751337032814,-460.0,0.00018176,2]
[368735492,1751337032823,-460.0,0.00018176,2]
[368735493,1751337032833,-460.0,0.00018176,2]
[368735494,1751337032843,-460.0,0.00018176,2]
[368735495,1751337032852,-460.0,0.00018176,2]
[368735496,1751337032862,-460.0,0.00018176,2]
[368735497,1751337032871,-460.0,0.00018176,2]
[368735498,1751337032880,-460.0,0.00018176,2]
[368735499,1751337032890,-460.0,0.00018176,2]
[368735500,1751337032899,-500.0,0.00018176,2]
[368735501,1751337032909,-500.0,0.00018176,2]
[368735502,1751337032918,-517.53372268,0.00018176,2]
[368735503,1751337032929,-500.0,0.00018176,2]
[368735504,1751337032939,-500.0,0.00018176,2]
[368735505,1751337032949,-500.0,0.00018176,2]
[368735506,1751337032958,-247.84177296,0.00018176,2]
[368735507,1751337032968,-500.0,0.00018176,2]
[368735508,1751337032977,-253.11830548,0.00018176,2]
[368735509,1751337032986,-500.0,0.00018176,2]
[368735510,1751337032996,-250.14114695,0.00018176,2]
[368735511,1751337033006,-236.8244708,0.00018176,2]
[368735512,1751337033015,-500.0,0.00018176,2]
[368735513,1751337033025,-500.0,0.00018176,2]
[368735514,1751337033036,-500.0,0.00018176,2]
[368735515,1751337033046,-456.74697121,0.00018176,2]
[368735516,1751337033056,-261.4786669,0.00018176,2]
[368735517,1751337033066,-328.52744124,0.00018176,2]
[368735518,1751337033076,-160.0,0.00018176,2]
[368735519,1751337033086,-389.66917852,0.00018177,2]
[368735520,1751337033097,-460.0,0.00018177,2]
[368735521,1751337033108,-460.0,0.00018177,2]
[368735522,1751337033118,-466.96690386,0.00018177,2]
[368735523,1751337033129,-460.0,0.00018177,2]
[368735524,1751337033139,-258.40990038,0.00018177,2]
[368735525,1751337033150,-460.0,0.00018177,2]
[368735526,1751337033163,-277.53124648,0.00018177,2]
[368735527,1751337033173,-460.0,0.00018177,2]
[368735528,1751337033183,-463.65504629,0.00018177,2]
[368735529,1751337033195,-460.0,0.00018177,2]
[368735530,1751337033205,-460.0,0.00018177,2]
[368735531,1751337033216,-460.0,0.00018177,2]
[368735532,1751337033228,-608.63265714,0.00018177,2]
[368735533,1751337033239,-636.41,0.00018177,2]
[368735534,1751337033250,-945.61,0.00018177,2]
[368735535,1751337033261,-460.0,0.00018177,2]
[368735536,1751337033272,-460.0,0.00018177,2]
[368735537,1751337033282,-460.0,0.00018177,2]
[368735538,1751337033293,-460.0,0.00018177,2]
[368735539,1751337033303,-460.0,0.00018177,2]
[368735540,1751337033313,-460.0,0.00018177,2]
[368735541,1751337033322,-482.41909101,0.00018177,2]
[368735542,1751337033331,-460.0,0.00018177,2]
[368735543,1751337033342,-460.0,0.00018177,2]
[368735544,1751337033352,-460.0,0.00018177,2]
[368735545,1751337033362,-460.0,0.00018177,2]
[368735546,1751337033372,-460.0,0.00018177,2]
[368735547,1751337033382,-460.0,0.00018177,2]
[368735548,1751337033392,-596.78,0.00018177,2]
[368735549,1751337033401,-460.0,0.00018177,2]
[368735550,1751337033411,-460.0,0.00018177,2]
[368735551,1751337033422,-460.0,0.00018177,2]
[368735552,1751337033432,-460.0,0.00018177,2]
[368735553,1751337033443,-460.0,0.00018177,2]
[368735554,1751337033453,-460.0,0.00018177,2]
[368735555,1751337033464,-543.21,0.00018177,2]
[368735556,1751337033474,-460.0,0.00018177,2]
[368735557,1751337033484,-460.0,0.00018177,2]
[368735558,1751337033495,-460.0,0.00018177,2]
[368735559,1751337033505,-460.0,0.00018177,2]
[368735560,1751337033515,-460.0,0.00018177,2]
[368735561,1751337033525,-460.0,0.00018177,2]
[368735562,1751337033535,-1813.13,0.00018177,2]
[368735563,1751337033545,-460.0,0.00018177,2]
[368735564,1751337033555,-460.0,0.00018177,2]
[368735565,1751337033568,-460.0,0.00018177,2]
[368735566,1751337033577,-460.0,0.00018177,2]
[368735567,1751337033587,-460.0,0.00018177,2]
[368735568,1751337033597,-460.0,0.00018177,2]
[368735569,1751337033607,-595.17,0.00018177,2]
[368735570,1751337033617,-460.0,0.00018177,2]
[368735571,1751337033627,-460.0,0.00018177,2]
[368735572,1751337033637,-460.0,0.00018177,2]
[368735573,1751337033647,-460.0,0.00018177,2]
[368735574,1751337033657,-460.0,0.00018177,2]
[368735575,1751337033666,-590.12,0.00018177,2]
[368735576,1751337033677,-182.48,0.00018177,2]
[368735577,1751337033688,-606.52,0.00018177,2]
[368735578,1751337033697,-460.0,0.00018177,2]
[368735579,1751337033707,-460.0,0.00018177,2]
[368735580,1751337033718,-204.8,0.00018177,2]
[368735581,1751337033728,-460.0,0.00018177,2]
[368735582,1751337033738,-460.0,0.00018177,2]
[368735583,1751337033748,-460.0,0.00018177,2]
[368735584,1751337033758,-421.2,0.00018177,2]
[368735585,1751337033769,-476.21,0.00018177,2]
[368735586,1751337033779,-460.0,0.00018177,2]
[368735587,1751337033788,-460.0,0.00018177,2]
[368735588,1751337033798,-460.0,0.00018177,2]
[368735589,1751337033808,-463.2004946,0.00018177,2]
[368735590,1751337033818,-170.48432306,0.00018177,2]
[368735591,1751337033827,-460.0,0.00018177,2]
[368735592,1751337033837,-595.55,0.00018177,2]
[368735593,1751337033847,-460.0,0.00018177,2]
[368735594,1751337033857,-460.0,0.00018177,2]
[368735595,1751337033867,-460.0,0.00018177,2]
[368735596,1751337033876,-460.0,0.00018177,2]
[368735597,1751337033887,-288.56,0.00018177,2]
[368735598,1751337033896,-579.76,0.00018177,2]
[368735599,1751337033905,-460.0,0.00018177,2]
[368735600,1751337033915,-460.61725283,0.00018177,2]
[368735601,1751337033926,-460.0,0.00018177,2]
[368735602,1751337033936,-460.0,0.00018177,2]
[368735603,1751337033945,-460.0,0.00018177,2]
[368735604,1751337033955,-460.0,0.00018177,2]
[368735605,1751337033965,-460.0,0.00018177,2]
[368735606,1751337033974,-460.0,0.00018177,2]
[368735607,1751337033984,-460.0,0.00018177,2]
[368735608,1751337033994,-460.0,0.00018177,2]
[368735609,1751337034005,-460.0,0.00018177,2]
[368735610,1751337034015,-460.0,0.00018177,2]
[368735611,1751337034025,-160.0,0.00018178,2]
[368735612,1751337034035,-461.29531521,0.00018178,2]
[368735613,1751337034045,-461.07345672,0.00018178,2]
[368735614,1751337034054,-460.0,0.00018178,2]
[368735615,1751337034065,-460.71865849,0.00018178,2]
[368735616,1751337034075,-460.0,0.00018178,2]
[368735617,1751337034085,-460.0,0.00018178,2]
[368735618,1751337034094,-496.73287156,0.00018178,2]
[368735619,1751337034104,-460.0,0.00018178,2]
[368735620,1751337034114,-456.1266861,0.00018178,2]
[368735621,1751337034123,-310.6437926,0.00018178,2]
[368735622,1751337034135,-460.0,0.00018178,2]
[368735623,1751337034144,-460.0,0.00018178,2]
[368735624,1751337034154,-460.0,0.00018178,2]
[368735625,1751337034169,-460.0,0.00018178,2]
[368735626,1751337034180,-460.0,0.00018178,2]
[368735627,1751337034190,-460.0,0.00018178,2]
[368735628,1751337034201,-460.0,0.00018178,2]
[368735629,1751337034213,-460.0,0.00018178,2]
[368735630,1751337034222,-460.0,0.00018178,2]
[368735631,1751337034233,-460.0,0.00018178,2]
[368735632,1751337034244,-460.0,0.00018178,2]
[368735633,1751337034254,-335.46432966,0.00018178,2]
[368735634,1751337034263,-466.77747327,0.00018178,2]
[368735635,1751337034273,-460.0,0.00018178,2]
[368735636,1751337034284,-460.0,0.00018178,2]
[368735637,1751337034293,-460.0,0.00018178,2]
[368735638,1751337034303,-461.78662967,0.00018178,2]
[368735639,1751337034313,-460.0,0.00018178,2]
[368735640,1751337034322,-460.0,0.00018178,2]
[368735641,1751337034333,-460.0,0.00018178,2]
[368735642,1751337034344,-460.0,0.00018178,2]
[368735643,1751337034353,-460.0,0.00018178,2]
[368735644,1751337034363,-460.0,0.00018178,2]
[368735645,1751337034373,-460.0,0.00018178,2]
[368735646,1751337034383,-230.74326087,0.00018178,2]
[368735647,1751337034393,-460.0,0.00018178,2]
[368735648,1751337034402,-460.0,0.00018178,2]
[368735649,1751337034411,-460.0,0.00018178,2]
[368735650,1751337034420,-599.67,0.00018178,2]
[368735651,1751337034430,-460.0,0.00018178,2]
[368735652,1751337034440,-460.0,0.00018178,2]
[368735653,1751337034450,-460.0,0.00018178,2]
[368735654,1751337034459,-460.0,0.00018178,2]
[368735655,1751337034468,-348.30610102,0.00018178,2]
[368735656,1751337034477,-165.39758709,0.00018178,2]
[368735657,1751337034487,-460.0,0.00018178,2]
[368735658,1751337034496,-460.0,0.00018178,2]
[368735659,1751337034506,-460.0,0.00018178,2]
[368735660,1751337034515,-460.0,0.00018178,2]
[368735661,1751337034525,-500.0,0.00018178,2]
[368735662,1751337034535,-485.41,0.00018178,2]
[368735663,1751337034545,-462.98386891,0.00018178,2]
[368735664,1751337034554,-460.0,0.00018178,2]
[368735665,1751337034563,-460.0,0.00018178,2]
[368735666,1751337034572,-460.0,0.00018178,2]
[368735667,1751337034581,-460.0,0.00018178,2]
[368735668,1751337034591,-460.0,0.00018178,2]
[368735669,1751337034600,-460.0,0.00018178,2]
[368735670,1751337034610,-460.0,0.00018178,2]
[368735671,1751337034619,-460.0,0.00018178,2]
[368735672,1751337034629,-460.0,0.00018178,2]
[368735673,1751337034639,-460.0,0.00018178,2]
[368735674,1751337034649,-460.0,0.00018178,2]
[368735675,1751337034658,-460.0,0.00018178,2]
[368735676,1751337034668,-489.94013119,0.00018178,2]
[368735677,1751337034678,-460.0,0.00018178,2]
[368735678,1751337034687,-460.0,0.00018178,2]
[368735679,1751337034697,-900.2,0.00018178,2]
[368735680,1751337034707,-460.0,0.00018178,2]
[368735681,1751337034717,-501.12,0.00018178,2]
[368735682,1751337034727,-460.0,0.00018178,2]
[368735683,1751337034738,-460.0,0.00018178,2]
[368735684,1751337034748,-460.0,0.00018178,2]
[368735685,1751337034758,-460.0,0.00018178,2]
[368735686,1751337034768,-460.0,0.00018178,2]
[368735687,1751337034778,-460.0,0.00018178,2]
[368735688,1751337034788,-462.09804264,0.00018178,2]
[368735689,1751337034798,-460.0,0.00018178,2]
[368735690,1751337034808,-584.38,0.00018178,2]
[368735691,1751337034817,-460.0,0.00018178,2]
[368735692,1751337034827,-1592.0,0.00018178,2]
[368735693,1751337034837,-460.0,0.00018178,2]
[368735694,1751337034848,-460.0,0.00018178,2]
[368735695,1751337034859,-460.0,0.00018178,2]
[368735696,1751337034869,-460.0,0.00018178,2]
[368735697,1751337034879,-915.52,0.00018178,2]
[368735698,1751337034889,-158.90170595,0.00018178,2]
[368735699,1751337034899,-2903.42,0.00018178,2]
[368735700,1751337034909,-460.0,0.00018178,2]
[368735701,1751337034919,-460.0,0.00018178,2]
[368735702,1751337034929,-463.40287499,0.00018178,2]
[368735703,1751337034938,-460.0,0.00018178,2]
[368735704,1751337034948,-460.0,0.00018178,2]
[368735705,1751337034958,-460.0,0.00018178,2]
[368735706,1751337034968,-662.92,0.00018178,2]
[368735707,1751337034978,-462.00059081,0.00018178,2]
[368735708,1751337034988,-460.0,0.00018178,2]
[368735709,1751337034998,-1450.0,0.00018178,2]
[368735710,1751337035008,-516.56,0.00018178,2]
[368735711,1751337035018,-460.0,0.00018178,2]
[368735712,1751337035028,-460.0,0.00018178,2]
[368735713,1751337035037,-460.0,0.00018178,2]
[368735714,1751337035145,-460.0,0.00018178,2]
[368735715,1751337035170,-2945.16,0.00018178,2]
[368735716,1751337035181,-368.06239879,0.00018178,2]
[368735717,1751337035192,-1087.5,0.00018178,2]
[368735718,1751337035203,-460.0,0.00018178,2]
[368735719,1751337035213,-460.0,0.00018178,2]
[368735720,1751337035222,-463.39,0.00018178,2]
[368735721,1751337035232,-460.0,0.00018178,2]
[368735722,1751337035245,-460.0,0.00018178,2]
[368735723,1751337035255,-465.55672489,0.00018178,2]
[368735724,1751337035265,-1189.54,0.00018178,2]
[368735725,1751337035275,-472.70574237,0.00018178,2]
[368735726,1751337035285,-460.0,0.00018178,2]
[368735727,1751337035295,-418.99032776,0.00018179,2]
[368735728,1751337035305,-324.88268731,0.00018179,2]
[368735729,1751337035314,-460.0,0.00018179,2]
[368735730,1751337035325,-460.0,0.00018179,2]
[368735731,1751337035335,-460.0,0.00018179,2]
[368735732,1751337035345,-460.0,0.0001818,2]
[368735733,1751337035356,-460.0,0.0001818,2]
[368735734,1751337035367,-460.62042086,0.0001818,2]
[368735735,1751337035379,-460.0,0.0001818,2]
[368735736,1751337035389,-460.0,0.0001818,2]
[368735737,1751337035400,-460.0,0.0001818,2]
[368735738,1751337035410,-460.0,0.0001818,2]
[368735739,1751337035421,-460.0,0.0001818,2]
[368735740,1751337035430,-464.79812002,0.0001818,2]
[368735741,1751337035441,-460.0,0.0001818,2]
[368735742,1751337035452,-460.0,0.0001818,2]
[368735743,1751337035463,-460.0,0.0001818,2]
[368735744,1751337035475,-462.93576231,0.0001818,2]
[368735745,1751337035485,-460.0,0.0001818,2]
[368735746,1751337035495,-460.0,0.0001818,2]
[368735747,1751337035505,-468.60750205,0.0001818,2]
[368735748,1751337035514,-460.0,0.0001818,2]
[368735749,1751337035523,-460.0,0.0001818,2]
[368735750,1751337035532,-460.0,0.0001818,2]
[368735751,1751337035542,-322.66914553,0.0001818,2]
[368735752,1751337035551,-460.0,0.0001818,2]
[368735753,1751337035562,-460.0,0.0001818,2]
[368735754,1751337035573,-460.0,0.0001818,2]
[368735755,1751337035584,-460.0,0.0001818,2]
[368735756,1751337035595,-460.0,0.0001818,2]
[368735757,1751337035604,-460.0,0.0001818,2]
[368735758,1751337035614,-563.02,0.0001818,2]
[368735759,1751337035623,-460.0,0.0001818,2]
[368735760,1751337035632,-572.66080376,0.0001818,2]
[368735761,1751337035642,-305.85214527,0.0001818,2]
[368735762,1751337035651,-460.0,0.0001818,2]
[368735763,1751337035661,-460.0,0.0001818,2]
[368735764,1751337035671,-460.0,0.0001818,2]
[368735765,1751337035681,-460.0,0.0001818,2]
[368735766,1751337035690,-460.0,0.0001818,2]
[368735767,1751337035701,-460.0,0.0001818,2]
[368735768,1751337035711,-276.98850884,0.0001818,2]
[368735769,1751337035722,-460.0,0.0001818,2]
[368735770,1751337035731,-460.0,0.0001818,2]
[368735771,1751337035741,-460.0,0.0001818,2]
[368735772,1751337035750,-460.0,0.0001818,2]
[368735773,1751337035760,-460.0,0.0001818,2]
[368735774,1751337035771,-500.0,0.0001818,2]
[368735775,1751337035781,-460.0,0.0001818,2]
[368735776,1751337035791,-460.0,0.0001818,2]
[368735777,1751337035800,-460.0,0.0001818,2]
[368735778,1751337035810,-460.0,0.0001818,2]
[368735779,1751337035819,-460.0,0.0001818,2]
[368735780,1751337035829,-460.0,0.0001818,2]
[368735781,1751337035839,-463.47493515,0.0001818,2]
[368735782,1751337035849,-460.0,0.0001818,2]
[368735783,1751337035860,-460.0,0.0001818,2]
[368735784,1751337035870,-460.0,0.0001818,2]
[368735785,1751337035880,-460.0,0.0001818,2]
[368735786,1751337035889,-460.0,0.0001818,2]
[368735787,1751337035899,-460.0,0.0001818,2]
[368735788,1751337035910,-460.0,0.0001818,2]
[368735789,1751337035921,-460.0,0.0001818,2]
[368735790,1751337035933,-460.0,0.0001818,2]
[368735791,1751337035943,-460.0,0.0001818,2]
[368735792,1751337035953,-460.0,0.0001818,2]
[368735793,1751337035964,-460.0,0.0001818,2]
[368735794,1751337035974,-460.0,0.0001818,2]
[368735795,1751337035985,-460.0,0.0001818,2]
[368735796,1751337035994,-461.93662766,0.0001818,2]
[368735797,1751337036005,-460.0,0.0001818,2]
[368735798,1751337036015,-460.0,0.0001818,2]
[368735799,1751337036025,-460.0,0.0001818,2]
[368735800,1751337036034,-460.0,0.0001818,2]
[368735801,1751337036044,-460.0,0.0001818,2]
[368735802,1751337036053,-418.12415793,0.0001818,2]
[368735803,1751337036063,-460.0,0.0001818,2]
[368735804,1751337036073,-467.51900841,0.0001818,2]
[368735805,1751337036082,-217.0,0.00018228,2]
[368735806,1751337036092,-460.0,0.0001828,2]
[368735807,1751337036101,-460.0,0.00018281,2]
[368735808,1751337036111,-464.50032199,0.00018281,2]
[368735809,1751337036120,-460.0,0.00018281,2]
[368735810,1751337036130,-460.0,0.00018281,2]
[368735811,1751337036140,-853.82121167,0.00018351,2]
[368735812,1751337036150,-924.54810963,0.00018354,2]
[368735813,1751337036163,-228.47,0.00018449,2]
[368735814,1751337036173,-460.0,0.00018449,2]
[368735815,1751337036182,-460.0,0.00018449,2]
[368735816,1751337036191,-1297.73,0.00018449,2]
[368735817,1751337036202,-460.0,0.00018449,2]
[368735818,1751337036211,-213.72,0.00018449,2]
[368735819,1751337036221,-536.89,0.00018449,2]
[368735820,1751337036231,-460.0,0.0001845,2]
[368735821,1751337036241,-225.05649363,0.0001845,2]
[368735822,1751337036252,-460.0,0.0001845,2]
[368735823,1751337036262,-460.0,0.0001845,2]
[368735824,1751337036271,-671.74,0.0001845,2]
[368735825,1751337036281,-1712.85,0.0001845,2]
[368735826,1751337036290,-1642.06,0.0001845,2]
[368735827,1751337036299,-460.0,0.0001845,2]